fUST/lending_fUST_20240208
["ID","MTS","AMOUNT","RATE_DAILY","PERIOD"]
[313413540,1707329347997,-168.860754,0.00022497,2]
[313413541,1707329348018,-166.666666,0.00022944,2]
[313413542,1707329348041,-166.666666,0.00023456,2]
[313413543,1707329348061,-166.666666,0.00023969,2]
[313413544,1707329348081,-280.0,0.00024147,7]
[313413545,1707329348101,-166.666666,0.00024482,2]
[313413546,1707329348124,-500.0,0.00024645,2]
[313413547,1707329348147,-500.0,0.00024645,2]
[313413548,1707329348167,-508.80933296,0.00024645,2]
[313413549,1707329348188,-500.0,0.00024645,2]
[313413550,1707329348209,-500.0,0.00024645,2]
[313413551,1707329348229,-499.96149211,0.00024645,2]
[313413552,1707329348251,-500.0,0.00024645,2]
[313413553,1707329348273,-500.0,0.00024645,2]
[313413554,1707329348294,-500.0,0.00024645,2]
[313413555,1707329348314,-500.0,0.00024645,2]
[313413556,1707329348338,-500.0,0.00024645,2]
[313413557,1707329348359,-500.0,0.00024645,2]
[313413558,1707329348379,-500.0,0.00024645,2]
[313413559,1707329348400,-500.0,0.00024645,2]
[313413560,1707329348420,-500.0,0.00024645,2]
[313413561,1707329348442,-500.0,0.00024645,2]
[313413562,1707329348464,-500.0,0.00024645,2]
[313413563,1707329348488,-500.0,0.00024645,2]
[313413564,1707329348509,-500.0,0.00024645,2]
[313413565,1707329348530,-500.0,0.00024645,2]
[313413566,1707329348550,-500.0,0.00024645,2]
[313413567,1707329348577,-500.0,0.00024645,2]
[313413568,1707329348599,-500.0,0.00024645,2]
[313413569,1707329348620,-500.0,0.00024645,2]
[313413570,1707329348640,-500.0,0.00024645,2]
[313413571,1707329348662,-500.0,0.00024645,2]
[313413572,1707329348683,-505.40314075,0.00024645,2]
[313413573,1707329348703,-525.0,0.00024645,2]
[313413574,1707329348724,-500.0,0.00024645,2]
[313413575,1707329348748,-500.0,0.00024645,2]
[313413576,1707329348768,-500.0,0.00024645,2]
[313413577,1707329348789,-500.0,0.00024645,2]
[313413578,1707329348810,-500.0,0.00024645,2]
[313413579,1707329348832,-500.0,0.00024645,2]
[313413580,1707329348852,-500.0,0.00024645,2]
[313413581,1707329348872,-500.0,0.00024645,2]
[313413582,1707329348892,-500.0,0.00024645,2]
[313413583,1707329348914,-500.0,0.00024645,2]
[313413584,1707329348936,-500.0,0.00024645,2]
[313413585,1707329349054,-500.0,0.00024645,2]
[313413586,1707329349074,-500.0,0.00024645,2]
[313413587,1707329349094,-500.0,0.00024645,2]
[313413588,1707329349114,-500.0,0.00024645,2]
[313413589,1707329349134,-500.0,0.00024645,2]
[313413590,1707329349156,-500.0,0.00024645,2]
[313413591,1707329349177,-500.0,0.00024645,2]
[313413592,1707329349197,-500.0,0.00024645,2]
[313413593,1707329349218,-500.0,0.00024645,2]
[313413594,1707329349238,-500.0,0.00024645,2]
[313413595,1707329349260,-500.0,0.00024645,2]
[313413596,1707329349281,-500.0,0.00024645,2]
[313413597,1707329349302,-500.0,0.00024645,2]
[313413598,1707329349326,-500.0,0.00024645,2]
[313413599,1707329349347,-500.0,0.00024645,2]
[313413600,1707329349369,-500.0,0.00024645,2]
[313413601,1707329349390,-500.0,0.00024645,2]
[313413602,1707329349412,-500.0,0.00024645,2]
[313413603,1707329349433,-500.0,0.00024645,2]
[313413604,1707329349454,-500.0,0.00024645,2]
[313413605,1707329349474,-500.0,0.00024645,2]
[313413606,1707329349495,-500.0,0.00024645,2]
[313413607,1707329349515,-500.0,0.00024645,2]
[313413608,1707329349536,-500.0,0.00024645,2]
[313413609,1707329349558,-500.0,0.00024645,2]
[313413610,1707329349579,-500.0,0.00024645,2]
[313413611,1707329349601,-500.0,0.00024645,2]
[313413612,1707329349621,-500.0,0.00024645,2]
[313413613,1707329349641,-500.0,0.00024645,2]
[313413614,1707329349663,-500.0,0.00024645,2]
[313413615,1707329349684,-500.0,0.00024645,2]
[313413616,1707329349706,-500.0,0.00024645,2]
[313413617,1707329349728,-608.73304982,0.00024645,2]
[313413618,1707329349755,-500.0,0.00024645,2]
[313413619,1707329349777,-416.71,0.00024645,2]
[313413620,1707329349799,-500.0,0.00024645,2]
[313413621,1707329349820,-500.0,0.00024645,2]
[313413622,1707329349842,-580.13215175,0.00024645,2]
[313413623,1707329349863,-500.0,0.00024645,2]
[313413624,1707329349886,-500.0,0.00024645,2]
[313413625,1707329349908,-500.0,0.00024645,2]
[313413626,1707329349929,-500.0,0.00024645,2]
[313413627,1707329349953,-500.0,0.00024645,2]
[313413628,1707329349975,-500.0,0.00024645,2]
[313413629,1707329349998,-500.0,0.00024645,2]
[313413630,1707329350019,-374.79921824,0.00024645,2]
[313413631,1707329357166,-125.20078176,0.00024645,2]
[313413632,1707329357187,-187.809402,0.00024645,2]
[313413633,1707329357209,-500.0,0.00024645,2]
[313413634,1707329357232,-500.0,0.00024645,2]
[313413635,1707329357255,-500.0,0.00024645,2]
[313413636,1707329357277,-500.0,0.00024645,2]
[313413637,1707329357302,-500.0,0.00024645,2]
[313413638,1707329357323,-500.0,0.00024645,2]
[313413639,1707329357344,-500.0,0.00024645,2]
[313413640,1707329357364,-500.0,0.00024645,2]
[313413641,1707329357385,-500.0,0.00024645,2]
[313413642,1707329357405,-500.0,0.00024645,2]
[313413643,1707329357426,-500.0,0.00024645,2]
[313413644,1707329357448,-265.58817876,0.00024645,2]
[313413645,1707329357469,-500.0,0.00024645,2]
[313413646,1707329357490,-500.0,0.00024645,2]
[313413647,1707329357517,-500.0,0.00024645,2]
[313413648,1707329357538,-500.0,0.00024645,2]
[313413649,1707329357560,-500.0,0.00024645,2]
[313413650,1707329357580,-500.0,0.00024645,2]
[313413651,1707329357601,-500.0,0.00024645,2]
[313413652,1707329357621,-500.0,0.00024645,2]
[313413653,1707329357642,-154.74710795,0.00024645,2]
[313413654,1707329357661,-500.0,0.00024645,2]
[313413655,1707329357682,-500.0,0.00024645,2]
[313413656,1707329357703,-500.0,0.00024645,2]
[313413657,1707329357723,-500.0,0.00024645,2]
[313413658,1707329357743,-500.0,0.00024645,2]
[313413659,1707329357769,-500.0,0.00024645,2]
[313413660,1707329357788,-500.0,0.00024645,2]
[313413661,1707329357808,-500.0,0.00024645,2]
[313413662,1707329357829,-500.0,0.00024645,2]
[313413663,1707329357853,-500.0,0.00024645,2]
[313413664,1707329357873,-226.15612748,0.00024645,2]
[313413665,1707329357981,-500.0,0.00024645,2]
[313413666,1707329358008,-500.0,0.00024645,2]
[313413667,1707329358032,-500.0,0.00024645,2]
[313413668,1707329358055,-500.0,0.00024645,2]
[313413669,1707329358080,-500.0,0.00024645,2]
[313413670,1707329358101,-500.0,0.00024645,2]
[313413671,1707329358121,-500.0,0.00024645,2]
[313413672,1707329358143,-500.0,0.00024645,2]
[313413673,1707329358165,-500.0,0.00024645,2]
[313413674,1707329358186,-500.0,0.00024645,2]
[313413675,1707329358206,-500.0,0.00024645,2]
[313413676,1707329358227,-500.0,0.00024645,2]
[313413677,1707329358251,-500.0,0.00024645,2]
[313413678,1707329358272,-499.99999999,0.00024645,2]
[313413679,1707329358292,-500.0,0.00024645,2]
[313413680,1707329358316,-301.32151753,0.00024645,2]
[313413681,1707329358337,-20000.0,0.00024645,2]
[313413682,1707329358358,-3324.95930227,0.00024646,2]
[313413683,1707329358381,-904.77250442,0.00024784,2]
[313413684,1707329358400,-246.00736193,0.00024784,2]
[313413685,1707329358421,-7314.00507721,0.00024881,2]
[313413686,1707329358440,-4039.14093432,0.00024884,2]
[313413687,1707329358460,-1331.32994501,0.00024884,2]
[313413688,1707329358479,-155.61951759,0.00024895,2]
[313413689,1707329358500,-357.70742454,0.00024895,2]
[313413690,1707329358519,-1946.26018626,0.00024895,2]
[313413691,1707329358539,-295.51074894,0.00024895,2]
[313413692,1707329358559,-1647.08163438,0.00024895,2]
[313413693,1707329358578,-236.07341904,0.00024895,2]
[313413694,1707329358598,-261.63551109,0.00024895,2]
[313413695,1707329358617,-156.77264268,0.00024895,2]
[313413696,1707329358637,-155.08679129,0.00024895,2]
[313413697,1707329358658,-181.08486443,0.00024895,2]
[313413698,1707329358677,-197.94061393,0.00024896,2]
[313413699,1707329358698,-156.23555794,0.00024896,2]
[313413700,1707329358718,-20921.62021083,0.00024896,2]
[313413701,1707329358738,-978.95259375,0.00024901,2]
[313413702,1707329358760,-499.42473756,0.0002496,5]
[313413703,1707329358781,-2503.91,0.0002497,3]
[313413704,1707329358800,-2574.289016,0.0002498,2]
[313413705,1707329358820,-335.52992191,0.00025,2]
[313413706,1707329358840,-2616.13972886,0.00025,2]
[313413707,1707329358859,-6299.4069347,0.00025,2]
[313413708,1707329358879,-5776.21160456,0.00025,2]
[313413709,1707329358898,-1000.0,0.00025,2]
[313413710,1707329358917,-1000.0,0.00025,2]
[313413711,1707329358937,-1000.0,0.00025,2]
[313413712,1707329358980,-1000.0,0.00025,2]
[313413713,1707329359000,-1000.0,0.00025,2]
[313413714,1707329359020,-1000.0,0.00025,2]
[313413715,1707329359041,-1000.0,0.00025,2]
[313413716,1707329359063,-1000.0,0.00025,2]
[313413717,1707329359083,-1000.0,0.00025,2]
[313413718,1707329359102,-1000.0,0.00025,2]
[313413719,1707329359122,-1000.0,0.00025,2]
[313413720,1707329359145,-1000.0,0.00025,2]
[313413721,1707329359165,-1000.0,0.00025,2]
[313413722,1707329359185,-1000.0,0.00025,2]
[313413723,1707329359205,-958.32715164,0.00025,2]
[313413728,1707329371104,-154.95351395,0.00022498,4]
[313413729,1707329371128,-970.70785059,0.00024644,2]
[313413760,1707329432302,-154.95351395,0.00022497,4]
[313413762,1707329432312,-352.18460138,0.00024643,2]
[313413763,1707329432322,-154.95351395,0.00024644,2]
[313413764,1707329432331,-300.0,0.00024644,2]
[313413765,1707329432340,-2090.59510347,0.00024644,2]
[313413766,1707329432350,-3209.14877556,0.00024644,2]
[313413767,1707329432359,-3253.25336922,0.00024645,2]
[313413768,1707329432368,-1828.80042533,0.00024748,2]
[313413769,1707329432377,-2086.59,0.00024989,3]
[313413770,1707329432460,-1738.82,0.00024989,3]
[313413771,1707329432488,-83922.89279015,0.00024996,2]
[313413772,1707329432498,-155.68359546,0.00024997,2]
[313413773,1707329432507,-15966.46856301,0.00024997,2]
[313413774,1707329432516,-215.87927434,0.00024998,2]
[313413775,1707329432525,-689.07505808,0.00024998,2]
[313413776,1707329432534,-2310.74812267,0.00024998,2]
[313413777,1707329432543,-19048.66080944,0.00024998,2]
[313413778,1707329432553,-1274.39363593,0.00024998,2]
[313413779,1707329432562,-589.3540748,0.00024998,2]
[313413780,1707329432572,-741.39467799,0.00024999,2]
[313413781,1707329432581,-2701.66202836,0.00024999,2]
[313413782,1707329432590,-335.52992191,0.00025,2]
[313413783,1707329432599,-6299.4069347,0.00025,2]
[313413784,1707329432608,-2055.17614731,0.00025462,2]
[313413785,1707329432617,-150.67095252,0.00025472,2]
[313413786,1707329432626,-200.0,0.00025479,2]
[313413787,1707329432636,-1449.02,0.00025562,3]
[313413788,1707329432645,-90413.89441875,0.00025572,2]
[313413789,1707329432654,-27124.16832562,0.00025572,2]
[313413790,1707329432663,-13843.66287268,0.00025572,2]
[313413791,1707329432673,-2786.39657433,0.00025583,2]
[313413792,1707329432682,-5295.76947568,0.00025588,2]
[313413793,1707329432691,-1365.50262588,0.000261,2]
[313413794,1707329432701,-473.42309529,0.00026197,2]
[313413795,1707329432710,-391.0,0.00026561,15]
[313413796,1707329432719,-1382.39428642,0.00027,2]
[313413797,1707329432728,-167.23304282,0.00027394,2]
[313413798,1707329432737,-556.20773545,0.00027394,2]
[313413799,1707329432746,-155.60538823,0.00027394,2]
[313413800,1707329432755,-166.90788547,0.00027394,2]
[313413801,1707329432764,-341.04952764,0.00027394,2]
[313413802,1707329432773,-18933.9483255,0.00027395,2]
[313413803,1707329432783,-503.63711727,0.00027397,3]
[313413804,1707329432793,-181.47101109,0.00027397,3]
[313413805,1707329432802,-500.0,0.00027397,2]
[313413806,1707329432814,-308.37268485,0.00027397,3]
[313413807,1707329432823,-519.30450437,0.00027397,3]
[313413808,1707329432834,-500.0,0.00027397,3]
[313413809,1707329432843,-508.03723994,0.00027397,3]
[313413810,1707329432853,-1000.0,0.00027397,2]
[313413811,1707329432862,-418.48917761,0.00027397,3]
[313413812,1707329432871,-500.0,0.00027397,3]
[313413813,1707329432881,-500.0,0.00027397,3]
[313413814,1707329432890,-500.0,0.00027397,3]
[313413815,1707329432899,-305.4224279,0.00027397,3]
[313413816,1707329432908,-500.0,0.00027397,3]
[313413817,1707329432918,-500.0,0.00027397,3]
[313413818,1707329432927,-782.28,0.00027397,3]
[313413819,1707329432936,-500.0,0.00027397,3]
[313413820,1707329432945,-500.0,0.00027397,3]
[313413821,1707329432955,-500.0,0.00027397,3]
[313413822,1707329432966,-500.0,0.00027397,3]
[313413823,1707329432977,-500.0,0.00027397,3]
[313413824,1707329432986,-500.0,0.00027397,3]
[313413825,1707329432995,-506.59111545,0.00027397,3]
[313413826,1707329433004,-524.11287084,0.00027397,3]
[313413827,1707329433014,-500.0,0.00027397,3]
[313413828,1707329433023,-500.0,0.00027397,3]
[313413829,1707329433032,-500.0,0.00027397,2]
[313413830,1707329433042,-513.40434132,0.00027397,3]
[313413831,1707329433052,-500.0,0.00027397,3]
[313413832,1707329433062,-510.51777933,0.00027397,3]
[313413833,1707329433072,-500.0,0.00027397,3]
[313413834,1707329433081,-500.0,0.00027397,3]
[313413835,1707329433090,-500.0,0.00027397,3]
[313413836,1707329433099,-155.02015262,0.00027397,3]
[313413837,1707329433109,-500.0,0.00027397,5]
[313413838,1707329433119,-500.0,0.00027397,3]
[313413839,1707329433128,-500.0,0.00027397,3]
[313413840,1707329433138,-500.0,0.00027397,3]
[313413841,1707329433147,-500.0,0.00027397,3]
[313413842,1707329433156,-554.01064219,0.00027397,3]
[313413843,1707329433165,-244.58503798,0.00027397,3]
[313413844,1707329433174,-500.0,0.00027397,3]
[313413845,1707329433184,-372.95353061,0.00027397,3]
[313413846,1707329433192,-518.40107846,0.00027397,3]
[313413847,1707329433201,-540.27708335,0.00027397,3]
[313413848,1707329433211,-500.0,0.00027397,2]
[313413849,1707329433220,-501.37259724,0.00027397,2]
[313413850,1707329433229,-548.13265251,0.00027397,3]
[313413851,1707329433240,-512.36071633,0.00027397,3]
[313413852,1707329433250,-504.62288054,0.00027397,3]
[313413853,1707329433259,-506.32646257,0.00027397,3]
[313413854,1707329433269,-4978.6,0.00027397,3]
[313413855,1707329433279,-513.93419891,0.00027397,3]
[313413856,1707329433288,-1109.85,0.00027397,3]
[313413857,1707329433297,-505.10836038,0.00027397,3]
[313413858,1707329433306,-1135.59,0.00027397,3]
[313413859,1707329433318,-500.0,0.00027397,3]
[313413860,1707329433327,-500.0,0.00027397,3]
[313413861,1707329433336,-500.0,0.00027397,3]
[313413862,1707329433345,-500.0,0.00027397,3]
[313413863,1707329433359,-1490.92,0.00027397,3]
[313413864,1707329433372,-500.0,0.00027397,3]
[313413865,1707329433385,-180.9410393,0.00027397,3]
[313413866,1707329433398,-500.0,0.00027397,3]
[313413867,1707329433409,-500.0,0.00027397,3]
[313413868,1707329433420,-500.0,0.00027397,3]
[313413869,1707329433433,-500.0,0.00027397,3]
[313413870,1707329433444,-500.0,0.00027397,3]
[313413871,1707329433455,-301.93124772,0.00027397,3]
[313413872,1707329433468,-500.0,0.00027397,3]
[313413873,1707329433480,-500.0,0.00027397,3]
[313413874,1707329433492,-505.88117629,0.00027397,3]
[313413875,1707329433504,-1438.66,0.00027397,3]
[313413876,1707329433515,-500.0,0.00027397,3]
[313413877,1707329433526,-842.69,0.00027397,3]
[313413878,1707329433536,-525.34101276,0.00027397,3]
[313413879,1707329433549,-584.12682869,0.00027397,3]
[313413880,1707329433560,-500.0,0.00027397,3]
[313413881,1707329433573,-500.0,0.00027397,3]
[313413882,1707329433585,-320.28093465,0.00027397,3]
[313413883,1707329433597,-500.0,0.00027397,3]
[313413884,1707329433609,-2823.13,0.00027397,3]
[313413885,1707329433622,-2355.64,0.00027397,3]
[313413886,1707329433633,-505.91505518,0.00027397,3]
[313413887,1707329433643,-624.15640998,0.00027397,3]
[313413888,1707329433654,-500.0,0.00027397,3]
[313413889,1707329433669,-500.0,0.00027397,3]
[313413890,1707329433681,-596.36,0.00027397,3]
[313413891,1707329433694,-8438.94,0.00027397,3]
[313413892,1707329433706,-500.0,0.00027397,3]
[313413893,1707329433718,-500.0,0.00027397,3]
[313413894,1707329433729,-1085.03,0.00027397,3]
[313413895,1707329433741,-500.0,0.00027397,3]
[313413896,1707329433754,-1375.15,0.00027397,3]
[313413897,1707329433766,-500.0,0.00027397,3]
[313413898,1707329433777,-500.0,0.00027397,3]
[313413899,1707329433792,-503.81745858,0.00027397,3]
[313413900,1707329433804,-2248.86,0.00027397,3]
[313413901,1707329433817,-500.0,0.00027397,3]
[313413902,1707329433828,-581.62,0.00027397,3]
[313413903,1707329433841,-500.0,0.00027397,3]
[313413904,1707329433851,-500.0,0.00027397,3]
[313413905,1707329433861,-1287.68,0.00027397,3]
[313413906,1707329433871,-500.0,0.00027397,3]
[313413907,1707329433881,-500.0,0.00027397,3]
[313413908,1707329433892,-500.49854135,0.00027397,3]
[313413909,1707329433903,-500.0,0.00027397,3]
[313413910,1707329433915,-4311.51,0.00027397,3]
[313413911,1707329433925,-552.69410233,0.00027397,3]
[313413912,1707329433936,-500.0,0.00027397,3]
[313413913,1707329433948,-514.05731148,0.00027397,3]
[313413914,1707329433959,-500.0,0.00027397,3]
[313413915,1707329433971,-686.9745277,0.00027397,2]
[313413916,1707329433981,-307.823136,0.000275,13]
[313413917,1707329433992,-500.0,0.00027667,2]
[313413918,1707329434003,-631.67032345,0.00027667,2]
[313413919,1707329434016,-500.0,0.00027667,2]
[313413920,1707329434026,-500.0,0.00027667,2]
[313413921,1707329434037,-280.50382432,0.00027667,2]
[313413922,1707329434049,-347.82950801,0.00027667,2]
[313413923,1707329434060,-500.0,0.00027667,2]
[313413924,1707329434071,-500.0,0.00027667,2]
[313413925,1707329434082,-500.0,0.00027667,2]
[313413926,1707329434093,-491.06101213,0.00027667,2]
[313413927,1707329434103,-626.18502026,0.00027667,2]
[313413928,1707329434114,-500.0,0.00027667,2]
[313413929,1707329434125,-500.0,0.00027667,2]
[313413930,1707329434135,-500.0,0.00027667,2]
[313413931,1707329434146,-500.0,0.00027667,2]
[313413932,1707329434156,-500.0,0.00027667,2]
[313413933,1707329434167,-500.0,0.00027667,2]
[313413934,1707329434177,-500.0,0.00027667,2]
[313413935,1707329434188,-500.0,0.00027667,2]
[313413936,1707329434198,-500.0,0.00027667,2]
[313413937,1707329434209,-500.0,0.00027667,2]
[313413938,1707329434220,-500.0,0.00027667,2]
[313413939,1707329434231,-500.0,0.00027667,2]
[313413940,1707329434241,-500.0,0.00027667,2]
[313413941,1707329434252,-500.0,0.00027667,2]
[313413942,1707329434263,-500.0,0.00027667,2]
[313413943,1707329434273,-500.0,0.00027667,2]
[313413944,1707329434284,-497.66385311,0.00027667,2]
[313413945,1707329434294,-175.43157375,0.00027668,2]
[313413946,1707329434304,-1277.53947422,0.00027668,2]
[313413947,1707329434316,-161.25377487,0.00027668,2]
[313413948,1707329434327,-676.1184447,0.0002767,2]
[313413949,1707329434337,-500.0,0.00027671,2]
[313413950,1707329434348,-500.0,0.00027671,3]
[313413951,1707329434358,-500.0,0.00027671,3]
[313413952,1707329434369,-500.0,0.00027671,3]
[313413953,1707329434380,-500.0,0.00027671,3]
[313413954,1707329434391,-782.28,0.00027671,3]
[313413955,1707329434401,-500.0,0.00027671,3]
[313413956,1707329434410,-504.99545555,0.00027671,3]
[313413957,1707329434419,-500.0,0.00027671,3]
[313413958,1707329434429,-500.0,0.00027671,3]
[313413959,1707329434439,-500.0,0.00027671,3]
[313413960,1707329434557,-509.27463085,0.00027671,3]
[313413961,1707329434568,-500.0,0.00027671,2]
[313413962,1707329434578,-500.0,0.00027671,3]
[313413963,1707329434588,-503.93231267,0.00027671,3]
[313413964,1707329434597,-500.0,0.00027671,5]
[313413965,1707329434606,-500.0,0.00027671,3]
[313413966,1707329434615,-500.0,0.00027671,3]
[313413967,1707329434625,-500.0,0.00027671,3]
[313413968,1707329434634,-500.0,0.00027671,2]
[313413969,1707329434643,-4978.6,0.00027671,3]
[313413970,1707329434652,-1109.85,0.00027671,3]
[313413971,1707329434661,-1135.59,0.00027671,3]
[313413972,1707329434671,-500.0,0.00027671,3]
[313413973,1707329434680,-500.0,0.00027671,3]
[313413974,1707329434689,-500.0,0.00027671,3]
[313413975,1707329434698,-1490.92,0.00027671,3]
[313413976,1707329434707,-500.0,0.00027671,3]
[313413977,1707329434716,-445.72663944,0.00027671,3]
[313413978,1707329434725,-500.0,0.00027671,3]
[313413979,1707329434735,-500.0,0.00027671,3]
[313413980,1707329434744,-1438.66,0.00027671,3]
[313413981,1707329434753,-500.0,0.00027671,3]
[313413982,1707329434762,-842.69,0.00027671,3]
[313413983,1707329434771,-500.0,0.00027671,3]
[313413984,1707329434780,-500.0,0.00027671,3]
[313413985,1707329434789,-2823.13,0.00027671,3]
[313413986,1707329434799,-2355.64,0.00027671,3]
[313413987,1707329434808,-500.0,0.00027671,3]
[313413988,1707329434821,-596.36,0.00027671,3]
[313413989,1707329434830,-8438.94,0.00027671,3]
[313413990,1707329434839,-500.0,0.00027671,3]
[313413991,1707329434848,-500.0,0.00027671,3]
[313413992,1707329434858,-1085.03,0.00027671,3]
[313413993,1707329434867,-1375.15,0.00027671,3]
[313413994,1707329434876,-500.0,0.00027671,3]
[313413995,1707329434885,-2248.86,0.00027671,3]
[313413996,1707329434895,-581.62,0.00027671,3]
[313413997,1707329434904,-500.0,0.00027671,3]
[313413998,1707329434914,-311.94,0.00027671,3]
[313413999,1707329434923,-1287.68,0.00027671,3]
[313414000,1707329434933,-500.0,0.00027671,3]
[313414001,1707329434943,-500.0,0.00027671,3]
[313414002,1707329434953,-4311.51,0.00027671,3]
[313414003,1707329434963,-500.0,0.00027671,3]
[313414004,1707329434974,-9112.00085404,0.000279,2]
[313414005,1707329434984,-500.0,0.00027945,2]
[313414006,1707329434993,-500.0,0.00027945,3]
[313414007,1707329435002,-500.0,0.00027945,3]
[313414008,1707329435012,-505.08531389,0.00027945,3]
[313414009,1707329435021,-500.0,0.00027945,3]
[313414010,1707329435030,-782.28,0.00027945,3]
[313414011,1707329435040,-606.75128085,0.00027945,3]
[313414012,1707329435050,-500.0,0.00027945,3]
[313414013,1707329435060,-500.0,0.00027945,2]
[313414014,1707329435071,-500.0,0.00027945,3]
[313414015,1707329435081,-506.91392923,0.00027945,5]
[313414016,1707329435090,-500.0,0.00027945,3]
[313414017,1707329435100,-500.0,0.00027945,3]
[313414018,1707329435109,-500.0,0.00027945,2]
[313414019,1707329435119,-4978.6,0.00027945,3]
[313414020,1707329435129,-1109.85,0.00027945,3]
[313414021,1707329435138,-1135.59,0.00027945,3]
[313414022,1707329435148,-500.0,0.00027945,3]
[313414023,1707329435157,-500.0,0.00027945,3]
[313414024,1707329435167,-1490.92,0.00027945,3]
[313414025,1707329435176,-500.0,0.00027945,3]
[313414026,1707329435186,-500.0,0.00027945,3]
[313414027,1707329435195,-500.0,0.00027945,3]
[313414028,1707329435204,-1438.66,0.00027945,3]
[313414029,1707329435213,-500.0,0.00027945,3]
[313414030,1707329435222,-842.69,0.00027945,3]
[313414031,1707329435232,-500.0,0.00027945,3]
[313414032,1707329435241,-500.0,0.00027945,3]
[313414033,1707329435251,-2823.13,0.00027945,3]
[313414034,1707329435260,-2355.64,0.00027945,3]
[313414035,1707329435270,-596.36,0.00027945,3]
[313414036,1707329435279,-8438.94,0.00027945,3]
[313414037,1707329435289,-500.0,0.00027945,3]
[313414038,1707329435298,-500.0,0.00027945,3]
[313414039,1707329435308,-1085.03,0.00027945,3]
[313414040,1707329435319,-1375.15,0.00027945,3]
[313414041,1707329435328,-500.0,0.00027945,3]
[313414042,1707329435338,-2248.86,0.00027945,3]
[313414043,1707329435347,-581.62,0.00027945,3]
[313414044,1707329435357,-500.0,0.00027945,3]
[313414045,1707329435367,-1287.68,0.00027945,3]
[313414046,1707329435377,-500.0,0.00027945,3]
[313414047,1707329435388,-500.0,0.00027945,3]
[313414048,1707329435398,-4311.51,0.00027945,3]
[313414049,1707329435409,-500.0,0.00027945,3]
[313414050,1707329435420,-1716.49476713,0.00028,2]
[313414051,1707329435431,-11314.77783663,0.00028,20]
[313414052,1707329435441,-154.95351395,0.00028,2]
[313414053,1707329435452,-151.43068375,0.00028,2]
[313414054,1707329435463,-51930.88733907,0.00028,2]
[313414055,1707329435473,-172.497189,0.00028057,2]
[313414056,1707329435484,-70542.50799451,0.000282,3]
[313414149,1707329438743,-696.72260029,0.00027387,3]
[313414150,1707329438762,-510.79739971,0.00027387,3]
[313414151,1707329438771,-167.26701564,0.00027396,2]
[313414152,1707329438781,-500.0,0.00027396,2]
[313414153,1707329438791,-302.90623639,0.00027396,2]
[313414156,1707329438926,-971.12,0.00027397,3]
[313414158,1707329438936,-1258.83,0.00027397,3]
[313414159,1707329438945,-1000.0,0.00027397,2]
[313414160,1707329438954,-971.12,0.00027671,3]
[313414161,1707329438964,-1258.83,0.00027671,3]
[313414162,1707329438977,-971.12,0.00027945,3]
[313414163,1707329438986,-1258.83,0.00027945,3]
[313414164,1707329438996,-6166.51035599,0.000282,3]
[313414165,1707329439005,-1260.68768877,0.000282,5]
[313414166,1707329439014,-523.37302151,0.00028217,2]
[313414167,1707329439024,-19910.76123758,0.00028217,2]
[313414168,1707329439033,-263.84512614,0.00028217,2]
[313414169,1707329439042,-500.0,0.00028219,3]